bitfinex/quotes_BTCUSD_20250129
["timestamp","ask_amount","ask_price","bid_price","bid_amount"]
[1738158556068,0.275789,101840.0,101830.0,0.08866199]
[1738158556486,0.228189,101840.0,101830.0,0.08866199]
[1738158556692,0.33921491,101840.0,101830.0,0.08866199]
[1738158557142,0.43645807,101840.0,101830.0,0.08866199]
[1738158557955,0.43645807,101840.0,101830.0,0.00078327]
[1738158558160,0.43645807,101840.0,101830.0,0.00178327]
[1738158559457,0.44646869,101840.0,101830.0,0.00178327]
[1738158559674,0.23819962,101840.0,101830.0,0.00178327]
[1738158561452,0.25819271,101840.0,101830.0,0.00178327]
[1738158563616,0.17729271,101840.0,101830.0,0.00178327]
[1738158563819,0.15729962,101840.0,101830.0,0.14908727]
[1738158564240,0.15729962,101840.0,101830.0,0.00178327]
[1738158564496,0.15832406,101840.0,101830.0,0.00178327]
[1738158565085,0.26934997,101840.0,101830.0,0.00178327]
[1738158565295,0.26832553,101840.0,101830.0,0.00178327]
[1738158565716,0.27246653,101840.0,101830.0,0.00178327]
[1738158565925,0.16144062,101840.0,101830.0,0.00178327]
[1738158566131,0.27349097,101840.0,101830.0,0.00178327]
[1738158566342,0.16144062,101840.0,101830.0,0.00178327]
[1738158568017,0.27349097,101840.0,101830.0,0.00178327]
[1738158568276,0.27246653,101840.0,101830.0,0.00178327]
[1738158571343,0.27246653,101840.0,101830.0,0.00078327]
[1738158571749,0.16344062,101840.0,101830.0,0.00078327]
[1738158571971,0.16546506,101840.0,101830.0,0.00078327]
[1738158572160,0.44649097,101840.0,101830.0,0.00078327]
[1738158572370,0.49106653,101840.0,101830.0,0.00078327]
[1738158576586,0.49106653,101840.0,101830.0,0.00049287]
[1738158576792,0.67920969,101840.0,101830.0,0.00049287]
[1738158578661,0.66920969,101840.0,101830.0,0.00049287]
[1738158581756,0.16444062,101840.0,101830.0,0.00049287]
[1738158581913,0.16444062,101840.0,101830.0,0.14779687]
[1738158582135,0.01715162,101840.0,101830.0,0.25882278]
[1738158582349,0.01715162,101840.0,101830.0,0.14779687]
[1738158582525,0.01715162,101840.0,101830.0,0.25882278]
[1738158583255,0.01715162,101840.0,101830.0,0.14779687]
[1738158583613,0.16444062,101840.0,101830.0,0.14779687]
[1738158584262,0.01715162,101840.0,101830.0,0.14779687]
[1738158584471,0.007141,101840.0,101830.0,0.25882278]
[1738158584691,0.007141,101840.0,101830.0,0.43516594]
[1738158585564,0.00514125,101840.0,101830.0,0.43516594]
[1738158585976,0.00514125,101840.0,101830.0,0.43616594]
[1738158586826,0.00414125,101840.0,101830.0,0.43616594]
[1738158587955,0.00414125,101840.0,101830.0,0.32514003]
[1738158588148,0.00414125,101840.0,101830.0,0.43616594]
[1738158590913,0.00414125,101840.0,101830.0,0.60916594]
[1738158591166,0.00414125,101840.0,101830.0,0.63977848]
[1738158595098,0.0044405,101840.0,101830.0,0.63977848]
[1738158596434,0.0044405,101840.0,101830.0,0.60916594]
[1738158601323,0.0044405,101840.0,101830.0,0.58616594]
[1738158601521,0.1517295,101840.0,101830.0,0.39604003]
[1738158601723,0.0044405,101840.0,101830.0,0.29879687]
[1738158601946,0.1517295,101840.0,101830.0,0.29879687]
[1738158602382,0.1517295,101840.0,101830.0,0.00149287]
[1738158602586,0.2326295,101840.0,101830.0,0.00149287]
[1738158603098,0.51922991,101830.0,101820.0,0.0001423]
[1738158603352,0.61647307,101830.0,101820.0,0.0001423]
[1738158603606,0.64407307,101830.0,101820.0,0.0001423]
[1738158605086,0.64607307,101830.0,101820.0,0.0001423]
[1738158606750,0.64707307,101830.0,101820.0,0.0001423]
[1738158606953,0.74442983,101830.0,101820.0,0.0001423]
[1738158607170,0.8782363,101830.0,101820.0,0.0001423]
[1738158607630,0.76690853,101830.0,101820.0,0.0001423]
[1738158608032,0.77308853,101830.0,101820.0,0.0001423]
[1738158608270,0.77108853,101830.0,101820.0,0.0001423]
[1738158609275,0.77808853,101830.0,101820.0,0.0011423]
[1738158609615,0.88911444,101830.0,101820.0,0.0011423]
[1738158609814,0.88811444,101830.0,101820.0,0.0011423]
[1738158610474,0.88911444,101830.0,101820.0,0.0011423]
[1738158610771,0.88211444,101830.0,101820.0,0.0001423]
[1738158610978,0.88411444,101830.0,101820.0,0.0001423]
[1738158613337,0.01,101810.0,101800.0,0.10439367]
[1738158613547,0.44892651,101810.0,101800.0,0.10439367]
[1738158613826,0.44790207,101810.0,101800.0,0.10439367]
[1738158614730,0.44890207,101810.0,101800.0,0.10439367]
[1738158615163,0.54725883,101810.0,101800.0,0.10439367]
[1738158615390,0.86718474,101810.0,101800.0,0.10439367]
[1738158615602,0.092,101800.0,101790.0,0.01613563]
[1738158615814,0.49454051,101800.0,101790.0,0.01613563]
[1738158616026,0.49351607,101800.0,101790.0,0.01613563]
[1738158616890,0.49499878,101800.0,101790.0,0.01613563]
[1738158617586,0.58235554,101800.0,101790.0,0.01613563]
[1738158617788,0.48699878,101800.0,101790.0,0.01613563]
[1738158618248,0.50699878,101800.0,101790.0,0.01613563]
[1738158618451,0.49324282,101770.0,101760.0,0.10993021]
[1738158618672,0.47946007,101770.0,101760.0,0.10993021]
[1738158618892,0.48946007,101770.0,101760.0,0.10993021]
[1738158619094,0.63564007,101770.0,101760.0,0.10993021]
[1738158619549,0.40081416,101770.0,101760.0,0.10993021]
[1738158619795,0.40081416,101770.0,101760.0,0.12092323]
[1738158620318,0.41459691,101770.0,101760.0,0.11193021]
[1738158620564,0.303571,101770.0,101760.0,0.11193021]
[1738158620769,0.00618,101770.0,101760.0,0.25733521]
[1738158620978,0.00618,101770.0,101760.0,0.25833521]
[1738158621187,0.00618,101770.0,101760.0,0.35457837]
[1738158621618,0.01232125,101770.0,101760.0,0.35353875]
[1738158622085,0.01132125,101770.0,101760.0,0.61456466]
[1738158622268,0.00514125,101770.0,101760.0,0.50353875]
[1738158622473,0.00514125,101770.0,101760.0,0.50453875]
[1738158622904,0.00414125,101770.0,101760.0,0.50453875]
[1738158623767,0.00414125,101770.0,101760.0,0.61456466]
[1738158624153,0.00414125,101770.0,101760.0,0.61956466]
[1738158625500,0.00414125,101770.0,101760.0,0.64256466]
[1738158626337,0.00414125,101770.0,101760.0,0.61956466]
[1738158626781,0.15153225,101770.0,101760.0,0.26129559]
[1738158626984,0.15153225,101770.0,101760.0,0.11389059]
[1738158627395,0.39877541,101770.0,101760.0,0.11389059]
[1738158627603,0.50980132,101770.0,101760.0,0.11389059]
[1738158627836,0.39877541,101770.0,101760.0,0.11389059]
[1738158628744,0.51980132,101770.0,101760.0,0.11389059]
[1738158628922,0.40877541,101770.0,101760.0,0.11389059]
[1738158629120,0.41869661,101770.0,101760.0,0.10989059]
[1738158629765,0.42876678,101770.0,101760.0,0.10889059]
[1738158630754,0.43076678,101770.0,101760.0,0.10889059]
[1738158631002,0.43176678,101770.0,101760.0,0.10889059]
[1738158631212,0.43176678,101770.0,101760.0,0.13452155]
[1738158631565,0.43176678,101770.0,101760.0,0.14100587]
[1738158631778,0.01706245,101770.0,101760.0,0.28855317]
[1738158632015,0.00514125,101770.0,101760.0,0.28855317]
[1738158632517,0.00514125,101770.0,101760.0,0.28955317]
[1738158632879,0.00414125,101770.0,101760.0,0.28955317]
[1738158633117,0.15153225,101770.0,101760.0,0.28955317]
[1738158633582,0.00414125,101770.0,101760.0,0.28955317]
[1738158634063,0.36082576,101770.0,101760.0,0.11651721]
[1738158634272,0.35980132,101770.0,101760.0,0.11651721]
[1738158634505,0.24877541,101770.0,101760.0,0.11551721]
[1738158634994,0.24877541,101770.0,101760.0,0.11651721]
[1738158635238,0.15153225,101770.0,101760.0,0.11579188]
[1738158635450,0.15153225,101770.0,101760.0,0.11679188]
[1738158636080,0.15153225,101770.0,101760.0,0.14221297]
[1738158636293,0.15353225,101770.0,101760.0,0.11579188]
[1738158636721,0.36180132,101770.0,101760.0,0.11579188]
[1738158636976,0.25077541,101770.0,101760.0,0.11579188]
[1738158637184,0.25077541,101770.0,101760.0,0.10903289]
[1738158637796,0.24977541,101770.0,101760.0,0.10903289]
[1738158638011,0.24977541,101770.0,101760.0,0.11993618]
[1738158638222,0.24977541,101770.0,101760.0,0.12093618]
[1738158638421,0.24977541,101770.0,101760.0,0.10903289]
[1738158638853,0.40177541,101770.0,101760.0,0.10903289]
[1738158639697,0.51280132,101770.0,101760.0,0.10903289]
[1738158640363,0.69210132,101770.0,101760.0,0.10903289]
[1738158640550,0.66210132,101770.0,101760.0,0.10903289]
[1738158640764,0.75945808,101770.0,101760.0,0.0802897]
[1738158641211,0.76563808,101770.0,101760.0,0.0802897]
[1738158641424,0.66828132,101770.0,101760.0,0.03603179]
[1738158641774,0.66628132,101770.0,101760.0,0.03603179]
[1738158641974,0.66828132,101770.0,101760.0,0.03603179]
[1738158642403,0.77930723,101770.0,101760.0,0.03043179]
[1738158642655,0.87666399,101770.0,101760.0,0.03043179]
[1738158644576,0.77930723,101770.0,101760.0,0.03043179]
[1738158644771,0.77930723,101770.0,101760.0,0.01962395]
[1738158645218,0.66828132,101770.0,101760.0,0.01962395]
[1738158645635,0.77930723,101770.0,101760.0,0.01962395]
[1738158646110,0.77830723,101770.0,101760.0,0.01962395]
[1738158646335,0.87866399,101770.0,101760.0,0.01962395]
[1738158646745,0.76763808,101770.0,101760.0,0.01962395]
[1738158646936,0.76463808,101770.0,101760.0,0.01962395]
[1738158647137,0.87566399,101770.0,101760.0,0.01962395]
[1738158647442,0.87666399,101770.0,101760.0,0.01962395]
[1738158647650,0.77930723,101770.0,101760.0,0.01962395]
[1738158648084,0.66828132,101770.0,101760.0,0.01962395]
[1738158649130,0.77930723,101770.0,101760.0,0.01962395]
[1738158649790,0.66828132,101770.0,101760.0,0.01962395]
[1738158649994,0.77930723,101770.0,101760.0,0.01962395]
[1738158650200,0.76563808,101770.0,101760.0,0.01962395]
[1738158651264,0.87666399,101770.0,101760.0,0.01962395]
[1738158652826,0.76563808,101770.0,101760.0,0.01962395]
[1738158653196,0.66528132,101770.0,101760.0,0.01962395]
[1738158653418,0.64528132,101770.0,101760.0,0.01962395]
[1738158653811,0.66828132,101770.0,101760.0,0.01962395]
[1738158657019,0.66858036,101770.0,101760.0,0.01962395]
[1738158657735,0.70791436,101770.0,101760.0,0.01962395]
[1738158657946,0.80527112,101770.0,101760.0,0.01962395]
[1738158660033,0.70791436,101770.0,101760.0,0.01962395]
[1738158660443,0.55861436,101770.0,101760.0,0.01962395]
[1738158660645,0.54928036,101770.0,101760.0,0.01962395]
[1738158660851,0.57228036,101770.0,101760.0,0.01962395]
[1738158662059,0.57028036,101770.0,101760.0,0.01962395]
[1738158662475,0.57028036,101770.0,101760.0,0.02062395]
[1738158663312,0.55028036,101770.0,101760.0,0.02062395]
[1738158664356,0.54928036,101770.0,101760.0,0.02062395]
[1738158667848,0.36628036,101770.0,101760.0,0.02062395]
[1738158668056,0.25525445,101770.0,101760.0,0.02062395]
[1738158668269,0.36628036,101770.0,101760.0,0.02062395]
[1738158668484,0.51628036,101770.0,101760.0,0.02062395]
[1738158670747,0.40525445,101770.0,101760.0,0.02062395]
[1738158675668,0.25525445,101770.0,101760.0,0.02062395]
[1738158675867,0.01062029,101770.0,101760.0,0.49829802]
[1738158676273,0.01062029,101770.0,101760.0,0.38727211]
[1738158676646,0.01062029,101770.0,101760.0,0.38627211]
[1738158677496,0.00444029,101770.0,101760.0,0.38627211]
[1738158677744,0.00644029,101770.0,101760.0,0.38627211]
[1738158678153,0.00844029,101770.0,101760.0,0.38627211]
[1738158678747,0.00844029,101770.0,101760.0,0.49729802]
[1738158679369,0.00844029,101770.0,101760.0,0.64729802]
[1738158682186,0.00644029,101770.0,101760.0,0.64729802]
[1738158683323,0.00644029,101770.0,101760.0,0.75832393]
[1738158683504,0.00444029,101770.0,101760.0,0.88132393]
[1738158683740,0.01440029,101770.0,101760.0,0.88232393]
[1738158685460,0.01440029,101770.0,101760.0,0.77129802]
[1738158685679,0.01440029,101770.0,101760.0,0.78233802]
[1738158685914,20.48058998,101750.0,101740.0,0.29512623]
[1738158686122,20.48058998,101750.0,101740.0,0.40340939]
[1738158686335,20.48058998,101750.0,101740.0,0.41009424]
[1738158686584,20.48058998,101750.0,101740.0,0.50159955]
[1738158687243,20.48107239,101750.0,101740.0,0.50159955]
[1738158687452,20.48207239,101750.0,101740.0,0.50859955]
[1738158688047,20.48207239,101750.0,101740.0,0.79262546]
[1738158688894,20.48207239,101750.0,101740.0,0.82892015]
[1738158689313,20.48207239,101750.0,101740.0,0.93994606]
[1738158689730,20.48207239,101750.0,101740.0,0.95326121]
[1738158690407,20.48207239,101750.0,101740.0,0.96003057]
[1738158690644,20.44276039,101750.0,101740.0,0.96003057]
[1738158690850,20.33379239,101750.0,101740.0,0.94483057]
[1738158691059,20.30099239,101750.0,101740.0,0.91203057]
[1738158691268,20.29999239,101750.0,101740.0,0.88703057]
[1738158691475,20.29999239,101750.0,101740.0,0.87599057]
[1738158691682,20.30099239,101750.0,101740.0,0.89003057]
[1738158692156,20.30099239,101750.0,101740.0,0.91003057]
[1738158693338,20.30099239,101750.0,101740.0,0.91017297]
[1738158694520,20.30099239,101750.0,101740.0,0.91021507]
[1738158694732,20.30099239,101750.0,101740.0,0.91221507]
[1738158695927,20.24202439,101750.0,101740.0,0.91221507]
[1738158696072,20.20271239,101750.0,101740.0,0.91221507]
[1738158696725,20.09299746,101750.0,101740.0,0.91221507]
[1738158697745,20.05368546,101750.0,101740.0,0.91221507]
[1738158697899,20.01437346,101750.0,101740.0,0.91221507]
[1738158698108,19.90896631,101750.0,101740.0,0.91221507]
[1738158699773,19.84999831,101750.0,101740.0,0.91221507]
[1738158700652,19.83034231,101750.0,101740.0,0.91221507]
[1738158701311,19.79103031,101750.0,101740.0,0.94274585]
[1738158701953,19.77137431,101750.0,101740.0,0.94274585]
[1738158702154,19.69275031,101750.0,101740.0,0.92274585]
[1738158702435,19.67309431,101750.0,101740.0,0.94274585]
[1738158702871,19.67723556,101750.0,101740.0,0.94274585]
[1738158703006,19.65757956,101750.0,101740.0,0.94274585]
[1738158704960,19.65757956,101750.0,101740.0,0.93170585]
[1738158705131,19.65757956,101750.0,101740.0,0.94270585]
[1738158705339,19.65757956,101750.0,101740.0,0.92270585]
[1738158705535,19.65757956,101750.0,101740.0,0.91593649]
[1738158705741,19.65757956,101750.0,101740.0,0.93593649]
[1738158706357,19.6578786,101750.0,101740.0,0.93593649]
[1738158706923,19.6578786,101750.0,101740.0,0.91593649]
[1738158707353,19.6578786,101750.0,101740.0,0.93593649]
[1738158711962,19.6578786,101750.0,101740.0,0.94268945]
[1738158712901,19.6578786,101750.0,101740.0,0.91168945]
[1738158713063,19.6578786,101750.0,101740.0,0.92268945]
[1738158718011,19.65728887,101750.0,101740.0,0.81166354]
[1738158718199,19.65728887,101750.0,101740.0,0.65996354]
[1738158718437,19.65728887,101750.0,101740.0,0.67096354]
[1738158719877,19.65728887,101750.0,101740.0,0.69396354]
[1738158720143,19.65728887,101750.0,101740.0,0.81498945]
[1738158722928,19.65728887,101750.0,101740.0,0.90279994]
[1738158723342,19.48612369,101750.0,101740.0,0.92279994]
[1738158723546,19.48612369,101750.0,101740.0,1.00449994]
[1738158724432,19.48612369,101750.0,101740.0,0.89449994]
[1738158724733,19.48612369,101750.0,101740.0,1.00449994]
[1738158727514,19.48596136,101750.0,101740.0,1.00449994]
[1738158728175,19.38768136,101750.0,101740.0,1.00449994]
[1738158728576,19.38768136,101750.0,101740.0,0.98449994]
[1738158728780,19.38768136,101750.0,101740.0,1.00449994]
[1738158728983,19.36802536,101750.0,101740.0,1.00449994]
[1738158729180,19.34836936,101750.0,101740.0,1.00449994]
[1738158729984,19.34836936,101750.0,101740.0,0.98449994]
[1738158730189,19.34836936,101750.0,101740.0,1.00449994]
[1738158731238,19.34836936,101750.0,101740.0,0.98449994]
[1738158731439,19.34836936,101750.0,101740.0,1.00449994]
[1738158732048,19.25008936,101750.0,101740.0,1.00449994]
[1738158732219,19.23043336,101750.0,101740.0,1.00449994]
[1738158732411,19.19112136,101750.0,101740.0,1.00449994]
[1738158733279,19.13215336,101750.0,101740.0,1.00449994]
[1738158733496,19.11249736,101750.0,101740.0,1.00449994]
[1738158733707,19.09284136,101750.0,101740.0,1.00049994]
[1738158733874,19.09184136,101750.0,101740.0,1.00249994]
[1738158734295,19.09284136,101750.0,101740.0,1.01149994]
[1738158735139,19.03387336,101750.0,101740.0,0.92368945]
[1738158735379,18.99456136,101750.0,101740.0,0.92368945]
[1738158735609,18.99456136,101750.0,101740.0,0.89315867]
[1738158736018,18.99456136,101750.0,101740.0,0.92383536]
[1738158736222,18.95524936,101750.0,101740.0,0.92383536]
[1738158736424,18.89628136,101750.0,101740.0,0.92383536]
[1738158737118,18.87662536,101750.0,101740.0,0.92383536]
[1738158737547,18.79800136,101750.0,101740.0,0.92383536]
[1738158738031,18.77834536,101750.0,101740.0,0.92383536]
[1738158738380,18.75868936,101750.0,101740.0,0.92383536]
[1738158738579,18.69972136,101750.0,101740.0,0.92383536]
[1738158739456,18.68006536,101750.0,101740.0,0.92383536]
[1738158741890,18.68006536,101750.0,101740.0,1.01218964]
[1738158743573,18.62109736,101750.0,101740.0,1.01218964]
[1738158743793,18.58178536,101750.0,101740.0,1.01218964]
[1738158744007,18.56212936,101750.0,101740.0,1.01218964]
[1738158744212,18.50316136,101750.0,101740.0,1.01218964]
[1738158744662,18.48350536,101750.0,101740.0,1.01218964]
[1738158746069,18.42453736,101750.0,101740.0,1.01218964]
[1738158746327,18.38522536,101750.0,101740.0,1.01218964]
[1738158746552,18.30614957,101750.0,101740.0,1.27765864]
[1738158746688,18.28377055,101750.0,101740.0,1.27765864]
[1738158746885,18.24697378,101750.0,101740.0,1.33663864]
[1738158747066,18.20766178,101750.0,101740.0,1.33663864]
[1738158747392,18.18800578,101750.0,101740.0,1.33663864]
[1738158747592,18.14869378,101750.0,101740.0,1.33663864]
[1738158748148,18.01679378,101750.0,101740.0,1.33663864]
[1738158748360,17.11764691,101750.0,101740.0,1.99772756]
[1738158748571,16.66249438,101750.0,101740.0,1.92774595]
[1738158748769,16.62457936,101750.0,101740.0,2.22774595]
[1738158748977,16.27759335,101750.0,101740.0,2.22774595]
[1738158749153,15.9916204,101750.0,101740.0,2.22774595]
[1738158749357,15.69680569,101750.0,101740.0,2.22774595]
[1738158749582,15.40099098,101750.0,101740.0,2.21874595]
[1738158749764,15.32475099,101750.0,101740.0,2.21874595]
[1738158749968,15.02969487,101750.0,101740.0,2.21174595]
[1738158750162,14.70821187,101750.0,101740.0,2.22266595]
[1738158750341,14.68755587,101750.0,101740.0,2.21866595]
[1738158750571,14.67555587,101750.0,101740.0,3.71866595]
[1738158750772,14.15738511,101750.0,101740.0,3.45319695]
[1738158750970,14.10972911,101750.0,101740.0,7.21202095]
[1738158751178,13.91510343,101750.0,101740.0,7.22002095]
[1738158751380,13.79893779,101750.0,101740.0,7.22002095]
[1738158751812,13.68104783,101750.0,101740.0,7.14066667]
[1738158752154,13.29583822,101750.0,101740.0,7.14066667]
[1738158752364,12.4654945,101750.0,101740.0,7.14066667]
[1738158752581,12.37670937,101750.0,101740.0,6.45530467]
[1738158752786,12.37670937,101750.0,101740.0,5.98175867]
[1738158753233,12.25542937,101750.0,101740.0,5.97375867]
[1738158753450,12.02469847,101750.0,101740.0,5.97375867]
[1738158753653,12.02469847,101750.0,101740.0,5.98275867]
[1738158753862,12.02469847,101750.0,101740.0,5.97375867]
[1738158754064,11.95861247,101750.0,101740.0,6.04611502]
[1738158754264,11.93895647,101750.0,101740.0,6.04611502]
[1738158754447,11.89964447,101750.0,101740.0,6.04611502]
[1738158754671,11.87998847,101750.0,101740.0,5.95423402]
[1738158755083,11.79658847,101750.0,101740.0,5.95423402]
[1738158755294,11.77693247,101750.0,101740.0,5.96323402]
[1738158755522,11.72442047,101750.0,101740.0,5.96323402]
[1738158755725,11.66776447,101750.0,101740.0,5.96323402]
[1738158755924,11.64810847,101750.0,101740.0,5.96323402]
[1738158756100,11.54982847,101750.0,101740.0,4.36884402]
[1738158756635,11.51182847,101750.0,101740.0,4.36884402]
[1738158756788,11.38576857,101750.0,101740.0,4.36884402]
[1738158756985,11.36611257,101750.0,101740.0,4.36884402]
[1738158757371,11.28314457,101750.0,101740.0,4.36884402]
[1738158757574,11.22618368,101750.0,101740.0,4.36884402]
[1738158757963,11.18356368,101750.0,101740.0,4.36884402]
[1738158758216,11.12459568,101750.0,101740.0,4.36884402]
[1738158758439,11.02605542,101750.0,101740.0,4.36884402]
[1738158758642,10.88924165,101750.0,101740.0,4.36884402]
[1738158759068,10.86958565,101750.0,101740.0,4.36884402]
[1738158759277,10.83027365,101750.0,101740.0,4.36884402]
[1738158759633,10.81061765,101750.0,101740.0,4.36884402]
[1738158759835,10.79096165,101750.0,101740.0,4.36884402]
[1738158760068,10.73760565,101750.0,101740.0,4.36884402]
[1738158760284,10.50798265,101750.0,101740.0,5.86884402]
[1738158760455,10.32786095,101750.0,101740.0,5.86884402]
[1738158760660,9.88159622,101750.0,101740.0,5.86884402]
[1738158761037,9.7783051,101750.0,101740.0,5.84884402]
[1738158761256,8.6033391,101750.0,101740.0,3.45019902]
[1738158761509,8.6033391,101750.0,101740.0,6.52419984]
[1738158761644,8.5835671,101750.0,101740.0,6.50419984]
[1738158761856,8.5835671,101750.0,101740.0,6.52419984]
[1738158762065,8.5639111,101750.0,101740.0,6.52419984]
[1738158762276,8.5049431,101750.0,101740.0,6.45655984]
[1738158762694,8.4852871,101750.0,101740.0,6.45655984]
[1738158763185,8.4066631,101750.0,101740.0,6.35341084]
[1738158763315,8.3870071,101750.0,101740.0,6.33245984]
[1738158763738,8.3870071,101750.0,101740.0,6.29652884]
[1738158764146,8.3280391,101750.0,101740.0,6.29652884]
[1738158764353,8.3083831,101750.0,101740.0,6.29652884]
[1738158764558,8.2887271,101750.0,101740.0,4.55392153]
[1738158764796,8.2887271,101750.0,101740.0,4.52197936]
[1738158764999,8.2494151,101750.0,101740.0,4.54497936]
[1738158765250,8.1904471,101750.0,101740.0,4.54497936]
[1738158766081,8.1707911,101750.0,101740.0,4.54497936]
[1738158766283,8.0921671,101750.0,101740.0,4.56497936]
[1738158767098,8.0725111,101750.0,101740.0,4.56497936]
[1738158767300,8.0135431,101750.0,101740.0,4.56497936]
[1738158768132,7.9742311,101750.0,101740.0,4.56497936]
[1738158768868,7.9152631,101750.0,101740.0,4.54497936]
[1738158769073,7.8759511,101750.0,101740.0,4.54497936]
[1738158769246,7.8169831,101750.0,101740.0,4.54497936]
[1738158769471,7.7973271,101750.0,101740.0,4.54497936]
[1738158772147,7.5171431,101750.0,101740.0,3.75583336]
[1738158772353,7.4974871,101750.0,101740.0,3.75583336]
[1738158772683,7.4974871,101750.0,101740.0,3.77583336]
[1738158773365,7.4581751,101750.0,101740.0,5.27583336]
[1738158773559,7.4385191,101750.0,101740.0,5.27583336]
[1738158773767,7.3992071,101750.0,101740.0,5.27583336]
[1738158774422,7.3009271,101750.0,101740.0,5.27583336]
[1738158775205,7.2812711,101750.0,101740.0,5.27583336]
[1738158775532,7.2616151,101750.0,101740.0,5.37955336]
[1738158775737,7.2026471,101750.0,101740.0,5.37955336]
[1738158776150,7.1436791,101750.0,101740.0,5.37955336]
[1738158776330,7.1043671,101750.0,101740.0,5.37955336]
[1738158777051,7.0650551,101750.0,101740.0,5.35955336]
[1738158777485,7.0060871,101750.0,101740.0,5.35955336]
[1738158778087,6.9864311,101750.0,101740.0,5.35955336]
[1738158778433,6.9667751,101750.0,101740.0,5.35955336]
[1738158778640,6.9078071,101750.0,101740.0,5.35955336]
[1738158779057,6.8881511,101750.0,101740.0,5.35955336]
[1738158779902,6.8488391,101750.0,101740.0,3.85955336]
[1738158780111,6.7898711,101750.0,101740.0,3.85955336]
[1738158780485,6.7505591,101750.0,101740.0,3.85955336]
[1738158781046,6.7309031,101750.0,101740.0,3.85955336]
[1738158781291,6.6522791,101750.0,101740.0,3.87955336]
[1738158781508,6.6129671,101750.0,101740.0,3.87955336]
[1738158782060,6.5736551,101750.0,101740.0,3.87955336]
[1738158782296,6.5343431,101750.0,101740.0,1.69113536]
[1738158782561,6.5146871,101750.0,101740.0,4.55629136]
[1738158782999,6.4950311,101750.0,101740.0,4.55629136]
[1738158783210,6.4360631,101750.0,101740.0,4.55629136]
[1738158783410,6.4164071,101750.0,101740.0,4.55629136]
[1738158784118,6.4164071,101750.0,101740.0,6.05629136]
[1738158784608,6.3770951,101750.0,101740.0,6.05629136]
[1738158784837,6.3574391,101750.0,101740.0,6.05629136]
[1738158785046,6.3377831,101750.0,101740.0,6.05629136]
[1738158785803,6.2788151,101750.0,101740.0,6.05629136]
[1738158786017,6.2395031,101750.0,101740.0,5.94906636]
[1738158786223,6.1412231,101750.0,101740.0,5.73246936]
[1738158786426,6.1412231,101750.0,101740.0,5.68657436]
[1738158786774,6.1412231,101750.0,101740.0,5.58648836]
[1738158787257,6.1215671,101750.0,101740.0,5.58648836]
[1738158787461,6.1019111,101750.0,101740.0,5.58648836]
[1738158787664,6.0429431,101750.0,101740.0,5.52942936]
[1738158788159,6.0036311,101750.0,101740.0,5.52942936]
[1738158788361,5.9643191,101750.0,101740.0,5.52942936]
[1738158788889,5.9446631,101750.0,101740.0,5.52942936]
[1738158789092,5.9250071,101750.0,101740.0,5.52942936]
[1738158789518,5.90414999,101750.0,101740.0,5.52942936]
[1738158789738,5.86177412,101750.0,101740.0,5.52942936]
[1738158790523,5.80280612,101750.0,101740.0,5.52942936]
[1738158790729,5.78315012,101750.0,101740.0,5.52942936]
[1738158791268,5.76349412,101750.0,101740.0,5.52942936]
[1738158791468,5.74383812,101750.0,101740.0,5.52942936]
[1738158791807,5.70456612,101750.0,101740.0,5.52942936]
[1738158793224,5.64559812,101750.0,101740.0,7.38201936]
[1738158793435,5.62594212,101750.0,101740.0,7.29510536]
[1738158793624,5.60628612,101750.0,101740.0,7.29510536]
[1738158794044,5.60628612,101750.0,101740.0,7.19090236]
[1738158795070,5.58663012,101750.0,101740.0,7.01006036]
[1738158795428,5.52766212,101750.0,101740.0,6.87136136]
[1738158795641,5.50800612,101750.0,101740.0,6.87136136]
[1738158796210,5.40972612,101750.0,101740.0,6.87136136]
[1738158797956,5.33110212,101750.0,101740.0,6.87136136]
[1738158798176,5.23282212,101750.0,101740.0,6.87136136]
[1738158798373,5.23282212,101750.0,101740.0,4.96718536]
[1738158798594,5.23282212,101750.0,101740.0,5.11309606]
[1738158799003,5.21316612,101750.0,101740.0,5.11309606]
[1738158799207,5.19351012,101750.0,101740.0,4.96399959]
[1738158799409,5.17385412,101750.0,101740.0,4.96399959]
[1738158799564,5.13454212,101750.0,101740.0,4.96370517]
[1738158799782,5.13454212,101750.0,101740.0,4.94067117]
[1738158799967,5.13454212,101750.0,101740.0,4.70430517]
[1738158800193,5.09523012,101750.0,101740.0,4.70430517]
[1738158800391,5.05591812,101750.0,101740.0,4.70430517]
[1738158800610,5.03626212,101750.0,101740.0,4.70430517]
[1738158801547,4.99695012,101750.0,101740.0,4.70430517]
[1738158801923,4.93798212,101750.0,101740.0,4.73028306]
[1738158802126,4.87901412,101750.0,101740.0,4.60290806]
[1738158802327,4.83970212,101750.0,101740.0,4.60290806]
[1738158802481,4.83970212,101750.0,101740.0,4.40755506]
[1738158802886,4.83970212,101750.0,101740.0,4.27621306]
[1738158803135,4.78073412,101750.0,101740.0,4.27621306]
[1738158803640,4.74142212,101750.0,101740.0,5.77621306]
[1738158804039,4.70211012,101750.0,101740.0,5.76606406]
[1738158804193,4.68245412,101750.0,101740.0,5.76606406]
[1738158804399,4.64314212,101750.0,101740.0,5.76606406]
[1738158805125,4.62348612,101750.0,101740.0,5.76606406]
[1738158805651,4.58417412,101750.0,101740.0,5.76606406]
[1738158805812,4.56451812,101750.0,101740.0,5.76606406]
[1738158806008,4.52520612,101750.0,101740.0,5.76606406]
[1738158806220,4.48589412,101750.0,101740.0,5.76606406]
[1738158806600,4.46623812,101750.0,101740.0,5.76606406]
[1738158807243,4.44658212,101750.0,101740.0,5.76606406]
[1738158807449,4.42692612,101750.0,101740.0,5.76606406]
[1738158808136,4.38761412,101750.0,101740.0,5.76606406]
[1738158809026,4.32864612,101750.0,101740.0,5.76606406]
[1738158809404,4.30899012,101750.0,101740.0,5.76606406]
[1738158810031,4.28933412,101750.0,101740.0,5.74606406]
[1738158810211,4.25002212,101750.0,101740.0,5.76606406]
[1738158810412,4.21071012,101750.0,101740.0,5.76606406]
[1738158810738,4.21071012,101750.0,101740.0,3.21363306]
[1738158810992,4.21071012,101750.0,101740.0,8.23253206]
[1738158811406,4.17139812,101750.0,101740.0,6.73253206]
[1738158811606,4.15174212,101750.0,101740.0,6.71253206]
[1738158811810,4.11243012,101750.0,101740.0,8.23253206]
[1738158812055,4.09277412,101750.0,101740.0,8.23253206]
[1738158812256,4.01415012,101750.0,101740.0,8.21749506]
[1738158812437,4.01415012,101750.0,101740.0,6.72449898]
[1738158812763,4.01415012,101750.0,101740.0,6.33220298]
[1738158813266,3.95518212,101750.0,101740.0,6.33220298]
[1738158813997,3.87655812,101750.0,101740.0,6.33220298]
[1738158814201,3.85690212,101750.0,101740.0,6.33220298]
[1738158815077,3.83724612,101750.0,101740.0,6.33220298]
[1738158815295,3.77827812,101750.0,101740.0,6.33220298]
[1738158815493,3.75862212,101750.0,101740.0,6.30625498]
[1738158815723,3.75862212,101750.0,101740.0,6.19588298]
[1738158816082,3.67999812,101750.0,101740.0,6.19588298]
[1738158816283,3.66034212,101750.0,101740.0,6.19588298]
[1738158816490,3.66034212,101750.0,101740.0,5.94731698]
[1738158817073,3.64068612,101750.0,101740.0,5.94731698]
[1738158817279,3.00261717,101750.0,101740.0,6.10685915]
[1738158817477,2.95779685,101750.0,101740.0,6.12958117]